bitfinex-derivatives/quotes_ETHF0:USTF0_20250918
["timestamp","ask_amount","ask_price","bid_price","bid_amount"]
[1758173232032,1.79029147,4598.3,4598.2,0.92901788]
[1758173232627,1.08779147,4598.3,4598.2,0.92901788]
[1758173232828,0.2909,4598.4,4598.3,0.69]
[1758173233233,0.4865,4598.4,4598.3,0.69]
[1758173234829,0.4865,4598.4,4598.1,0.60393935]
[1758173235129,1.57229147,4598.4,4598.3,0.21727]
[1758173235333,0.4865,4598.4,4598.3,0.21727]
[1758173235536,0.2909,4598.3,4598.2,0.89219147]
[1758173235936,0.2909,4598.3,4598.2,1.10946147]
[1758173236137,0.4865,4598.3,4598.2,1.10946147]
[1758173237039,0.6801,4598.3,4598.2,0.21727]
[1758173237240,0.2909,4598.2,4597.5,3.2078]
[1758173237440,0.4865,4597.6,4597.5,4.09999147]
[1758173237641,0.4865,4597.6,4597.5,4.31799147]
[1758173238041,0.4865,4597.6,4597.5,3.64307]
[1758173238242,0.4865,4597.6,4597.5,4.53526147]
[1758173238434,0.6801,4597.6,4597.5,3.64307]
[1758173239438,0.6801,4597.6,4597.5,3.42507]
[1758173242645,0.6801,4597.6,4597.5,3.2078]
[1758173243045,0.6801,4597.6,4597.5,3.42507]
[1758173243647,0.6801,4597.6,4597.5,3.2078]
[1758173246644,0.1267,4597.5,4597.3,0.0056]
[1758173246850,0.6801,4597.4,4597.3,0.0056]
[1758173247049,1.57229147,4597.4,4597.3,0.0056]
[1758173247250,0.2909,4597.4,4597.3,0.0056]
[1758173247851,0.4865,4597.4,4597.3,0.0056]
[1758173248256,1.57229147,4597.4,4597.3,0.0056]
[1758173254352,1.79129147,4597.4,4597.3,0.0056]
[1758173254660,1.57229147,4597.4,4597.3,0.0056]
[1758173254854,1.79129147,4597.4,4597.3,0.0056]
[1758173255452,1.57229147,4597.4,4597.3,0.0056]
[1758173255648,1.79129147,4597.4,4597.3,0.0056]
[1758173258058,2.39258294,4597.4,4596.4,3.2078]
[1758173258267,1.72039147,4596.5,4596.4,3.2078]
[1758173258853,1.72039147,4596.5,4596.4,7.42507]
[1758173259054,0.4139,4596.5,4596.4,8.53626147]
[1758173259261,0.4139,4596.5,4596.4,4.53626147]
[1758173261058,0.4139,4596.5,4596.4,3.64407]
[1758173261865,0.6175,4596.5,4596.4,3.64407]
[1758173263262,0.4139,4596.5,4596.4,7.64407]
[1758173263967,1.00989147,4597.0,4596.4,7.64407]
[1758173264164,1.00989147,4597.0,4596.4,3.4268]
[1758173264460,0.1177,4596.5,4596.4,3.4268]
[1758173264665,0.4139,4596.5,4596.4,4.31899147]
[1758173265064,0.4139,4596.5,4596.4,4.53626147]
[1758173266168,0.4139,4596.5,4596.4,3.64407]
[1758173266369,0.4139,4596.5,4596.4,4.53626147]
[1758173267269,0.2962,4596.5,4596.4,4.53626147]
[1758173268269,0.2962,4596.9,4596.4,4.53626147]
[1758173268470,0.4139,4597.0,4596.8,0.89219147]
[1758173268671,0.4139,4597.0,4596.9,0.43627]
[1758173271375,0.6175,4597.0,4596.9,0.43627]
[1758173272679,0.6175,4597.0,4596.9,0.219]
[1758173273082,0.6175,4597.0,4596.9,0.43627]
[1758173275777,0.8282,4597.0,4596.9,0.43627]
[1758173276886,0.4139,4597.0,4596.9,0.43627]
[1758173277180,0.4139,4597.0,4596.9,1.32846147]
[1758173278583,0.6175,4597.0,4596.9,1.32846147]
[1758173279884,0.6175,4597.0,4596.7,3.2078]
[1758173279885,2.31538294,4597.0,4596.7,3.2078]
[1758173280077,1.60209147,4596.8,4596.7,3.42507]
[1758173280478,1.60209147,4596.8,4596.7,3.64407]
[1758173280679,0.7099,4596.8,4596.7,3.64407]
[1758173281491,1.60209147,4596.8,4596.7,3.4268]
[1758173281784,1.60209147,4596.8,4596.4,0.0217]
[1758173282090,0.1177,4597.0,4596.4,0.0217]
[1758173282091,0.8269,4596.5,4596.4,0.0217]
[1758173282293,0.8269,4596.5,4596.4,0.2407]
[1758173282588,0.8269,4596.5,4596.4,0.43627]
[1758173282979,0.4133,4595.8,4595.7,5.15822255]
[1758173283187,1.60209147,4595.8,4595.7,3.2078]
[1758173283787,0.7099,4595.8,4595.7,3.2078]
[1758173283985,0.7099,4595.8,4595.7,4.53626147]
[1758173284178,0.7099,4595.8,4595.7,3.64407]
[1758173284384,0.7099,4595.8,4595.7,4.53626147]
[1758173284786,0.2966,4595.8,4595.7,3.64407]
[1758173284988,0.4991,4595.8,4595.7,4.53626147]
[1758173285190,0.7099,4595.8,4595.7,3.2078]
[1758173285491,1.60209147,4595.8,4595.7,3.2078]
[1758173286093,0.7099,4595.8,4595.7,3.2078]
[1758173286394,1.60209147,4595.8,4595.7,3.2078]
[1758173287485,1.60209147,4595.8,4595.3,1.34911403]
[1758173287486,0.7323,4595.4,4595.3,0.45692256]
[1758173287789,2.51668294,4595.4,4595.3,0.45692256]
[1758173287992,1.62449147,4595.4,4595.3,0.45692256]
[1758173288192,2.51668294,4595.4,4595.3,0.45692256]
[1758173288387,2.51668294,4595.4,4595.3,0.43522256]
[1758173289491,1.62449147,4595.4,4595.3,0.43522256]
[1758173289693,6.73768294,4595.4,4595.3,0.43522256]
[1758173289887,0.414,4593.6,4593.5,3.2078]
[1758173290082,0.414,4593.6,4592.9,0.2935]
[1758173290083,0.7323,4593.3,4593.2,0.71177155]
[1758173290282,1.04584695,4593.9,4593.3,0.2935]
[1758173290482,0.212,4593.5,4593.4,3.923]
[1758173290685,0.1184,4594.0,4593.5,0.4109]
[1758173290882,0.7323,4593.8,4593.7,0.69]
[1758173291395,0.8507,4593.5,4593.4,3.4288]
[1758173291596,1.89654695,4593.5,4593.2,0.02177155]
[1758173292298,1.77814695,4593.3,4593.2,0.02177155]
[1758173292495,0.7323,4593.3,4593.2,0.22247155]
[1758173292793,0.7323,4593.3,4593.2,0.41827155]
[1758173293093,0.7323,4593.3,4593.2,0.22247155]
[1758173293286,0.7323,4593.3,4593.2,0.92904155]
[1758173294690,0.7323,4593.3,4593.2,0.02177155]
[1758173294993,0.202,4593.3,4593.2,0.92904155]
[1758173295393,3.4098,4593.8,4593.7,0.2007]
[1758173295592,0.414,4593.8,4593.7,0.69]
[1758173295793,0.414,4593.8,4593.7,0.90727]
[1758173295995,0.7323,4593.8,4593.7,0.90727]
[1758173297698,0.7323,4593.8,4593.2,0.31527155]
[1758173297894,0.1184,4594.0,4593.5,0.2007]
[1758173297895,1.04584695,4593.6,4593.5,0.2007]
[1758173298099,1.45984695,4593.6,4593.5,0.2007]
[1758173298502,1.77814695,4593.6,4593.5,0.2007]
[1758173299707,0.7323,4593.6,4593.5,0.90727]
[1758173300100,0.5203,4593.6,4593.5,0.90727]
[1758173300895,0.7323,4593.6,4593.5,0.61377]
[1758173301094,1.77814695,4593.6,4593.5,0.61377]
[1758173302608,1.77814695,4593.6,4593.5,0.3965]
[1758173303001,1.77814695,4593.6,4593.5,0.61377]
[1758173303405,1.77814695,4593.6,4593.5,0.90727]
[1758173304705,1.77814695,4593.6,4593.5,0.61377]
[1758173305202,1.77814695,4593.6,4593.5,0.21727]
[1758173305804,0.7323,4593.6,4593.5,0.21727]
[1758173306000,1.77814695,4593.6,4593.5,0.21727]
[1758173306210,1.77814695,4593.6,4593.5,0.41797]
[1758173307307,0.5203,4593.6,4593.5,0.90727]
[1758173307812,0.7323,4593.6,4593.5,0.90727]
[1758173309510,0.7323,4593.3,4593.2,0.04347155]
[1758173309814,1.77814695,4593.3,4593.2,0.04347155]
[1758173310609,8.98594695,4593.3,4593.2,0.04347155]
[1758173311309,0.414,4592.3,4592.2,3.4085]
[1758173311514,0.7323,4592.3,4592.2,3.4085]
[1758173311714,0.7323,4592.3,4592.2,3.62577]
[1758173312517,0.7323,4592.3,4592.2,4.11507]
[1758173312914,0.5203,4592.7,4592.6,0.3965]
[1758173313116,0.5203,4592.7,4592.6,0.69]
[1758173313614,0.7323,4592.7,4592.6,0.3965]
[1758173313814,0.7323,4592.4,4592.3,0.2935]
[1758173314016,0.7323,4592.4,4592.3,0.4942]
[1758173314219,0.7323,4592.4,4592.3,0.2007]
[1758173318720,0.7323,4592.4,4592.3,0.7021]
[1758173320521,0.7323,4592.4,4592.3,0.397]
[1758173320922,0.7323,4592.4,4592.3,0.7021]
[1758173322421,0.7323,4592.4,4592.3,0.2007]
[1758173322624,0.1184,4593.0,4592.3,1.74794695]
[1758173322821,0.318,4593.3,4592.8,0.7122]
[1758173323123,0.5259,4592.9,4592.8,0.9352]
[1758173323722,0.2079,4592.9,4592.8,0.9352]
[1758173324122,0.5259,4592.9,4592.8,0.9352]
[1758173324326,0.7228,4592.9,4592.8,0.9352]
[1758173324531,0.7228,4592.1,4592.0,3.92]
[1758173324925,0.7228,4592.1,4592.0,4.36027]
[1758173325232,0.1267,4592.5,4592.0,4.48427]
[1758173325426,0.1267,4592.5,4592.3,0.92947]
[1758173325427,0.7228,4592.4,4592.3,0.92947]
[1758173325928,0.7228,4592.4,4592.3,0.7122]
[1758173327127,0.318,4592.8,4592.3,1.75804695]
[1758173327328,0.4048,4592.6,4592.5,0.62437]
[1758173327631,0.7228,4592.6,4592.5,0.4071]
[1758173327833,0.7228,4592.6,4592.5,0.7122]
[1758173328022,0.7228,4592.6,4592.5,0.92947]
[1758173328620,0.5259,4592.6,4592.5,0.92947]
[1758173328821,0.318,4592.9,4592.6,0.3051]
[1758173329026,0.5259,4592.9,4592.8,0.92947]
[1758173329429,0.5259,4592.9,4592.8,0.7122]
[1758173329926,0.318,4593.1,4592.8,0.4071]
[1758173330233,0.7228,4593.6,4593.5,0.2108]
[1758173330426,1.51570404,4593.6,4593.5,0.2108]
[1758173330823,0.4048,4593.3,4593.2,0.2108]
[1758173331029,0.7228,4593.3,4593.2,0.2108]
[1758173331230,2.31449093,4593.3,4593.2,0.2108]
[1758173331422,2.31449093,4593.3,4592.7,0.4338]
[1758173331423,0.7228,4592.8,4592.7,0.4338]
[1758173331825,0.7228,4592.8,4592.7,0.65107]
[1758173332734,0.7228,4592.8,4592.7,0.4338]
[1758173333032,0.7228,4592.8,4592.7,0.42807]
[1758173333733,0.7228,4592.8,4592.7,0.62437]
[1758173333927,0.7228,4592.8,4592.7,0.92947]
[1758173340637,0.2079,4592.8,4592.7,0.92947]
[1758173341340,0.4986,4592.8,4592.7,0.92947]
[1758173342642,0.4823,4593.0,4592.9,0.396]
[1758173342842,0.4823,4593.0,4592.9,0.93227]
[1758173343042,0.4823,4593.0,4592.9,0.715]
[1758173344642,0.6836,4593.0,4592.9,0.715]
[1758173347743,0.6836,4593.0,4592.9,0.93227]
[1758173349145,1.72944695,4593.0,4592.9,0.93227]
[1758173349345,0.3054,4592.9,4592.5,3.2078]
[1758173349644,0.5101,4592.6,4592.5,3.9231]
[1758173349845,0.5101,4592.6,4592.5,4.1451]
[1758173350043,0.5101,4592.6,4592.5,4.36237]
[1758173351443,0.5101,4592.9,4592.8,0.4104]
[1758173351737,0.89397206,4593.1,4592.8,0.4104]
[1758173351936,0.5101,4593.0,4592.9,0.93257]
[1758173352135,0.7213,4593.0,4592.9,0.93257]
[1758173352345,0.7213,4593.0,4592.9,0.7153]
[1758173353344,0.8444,4593.0,4592.9,0.7153]
[1758173356937,0.7213,4593.0,4592.9,0.7153]
[1758173357846,0.7213,4593.0,4592.9,0.93257]
[1758173359348,1.73837206,4593.0,4592.9,0.42927]
[1758173359646,1.73837206,4593.0,4592.9,0.21727]
[1758173359846,1.73837206,4593.0,4592.9,0.42927]
[1758173360243,1.73837206,4593.0,4592.9,0.73417]
[1758173362551,1.73837206,4593.0,4592.9,0.93257]
[1758173362758,1.73837206,4593.0,4592.9,0.7153]
[1758173363052,1.73837206,4593.0,4592.9,0.93257]
[1758173363250,0.8444,4593.0,4592.9,0.93257]
[1758173363438,1.73837206,4593.0,4592.9,0.93257]
[1758173366348,3.2078,4593.8,4593.0,0.4239]
[1758173366648,0.5101,4593.4,4593.3,0.7153]
[1758173366848,0.7213,4593.4,4593.3,0.93257]
[1758173367150,0.7213,4593.4,4593.3,0.7153]
[1758173367652,0.7213,4593.4,4593.3,1.60927206]
[1758173370251,0.5101,4593.4,4593.3,1.60927206]
[1758173370846,0.3054,4593.7,4593.6,0.4104]
[1758173371042,0.5101,4593.7,4593.6,5.25534206]
[1758173371245,0.7213,4593.7,4593.6,5.03807206]
[1758173371646,0.4159,4593.0,4592.7,1.95042255]
[1758173371846,0.4159,4593.0,4592.9,0.2337]
[1758173371847,1.73837206,4593.0,4592.9,0.2337]
[1758173372044,0.2047,4592.6,4592.5,3.9457]
[1758173372249,1.61527206,4592.6,4592.5,0.221]
[1758173372446,0.3054,4592.5,4591.9,3.5127]
[1758173372752,0.7213,4592.4,4592.3,0.21727]
[1758173373055,0.7213,4592.4,4592.3,0.65127]
[1758173373250,0.7213,4592.4,4592.3,0.434]
[1758173373451,0.7213,4592.4,4592.3,0.7389]
[1758173373753,1.61527206,4592.4,4592.3,0.7389]
[1758173374746,1.61527206,4592.4,4592.3,0.9373]
[1758173375555,1.61527206,4592.4,4592.3,0.7153]
[1758173375854,1.61527206,4592.4,4592.3,0.9373]
[1758173376058,0.846,4592.0,4591.9,3.2295]
[1758173376254,1.73997206,4592.0,4591.9,4.18187]
[1758173377655,2.63394412,4592.0,4591.9,4.18187]
[1758173378155,1.73997206,4592.0,4591.9,4.16017]
[1758173382355,0.7198,4592.0,4591.9,4.16017]
[1758173382555,0.404,4592.4,4592.3,0.4227]
[1758173382755,1.61377206,4592.4,4592.3,0.7351]
[1758173383454,1.61377206,4592.4,4592.3,0.4227]
[1758173383655,1.61377206,4592.4,4592.3,0.6437]
[1758173384457,1.61377206,4592.4,4592.3,0.9561]
[1758173385655,1.61377206,4592.4,4592.3,0.6437]
[1758173387054,1.61377206,4592.4,4592.3,0.9561]
[1758173387856,1.61377206,4592.4,4592.3,0.221]
[1758173388951,0.7198,4592.4,4592.3,0.221]
[1758173389261,1.61377206,4592.4,4592.3,0.4336]
[1758173390654,1.61377206,4592.4,4592.3,0.2126]
[1758173392051,1.61377206,4592.4,4592.3,0.7351]
[1758173392461,1.61377206,4592.4,4592.3,0.2126]
[1758173395956,1.61377206,4592.4,4592.3,0.7351]
[1758173396359,1.61377206,4592.4,4592.3,0.9561]
[1758173397758,0.7198,4592.4,4592.3,0.9561]
[1758173397959,3.2078,4592.6,4592.4,0.7351]
[1758173397960,0.89397206,4592.5,4592.4,0.7351]
[1758173398260,0.3158,4592.6,4592.5,0.4368]
[1758173398569,0.89397206,4592.6,4592.5,1.07677]
[1758173398867,1.20977206,4592.8,4592.7,0.4227]
[1758173399057,1.41507206,4592.8,4592.7,0.9561]
[1758173399254,1.41507206,4592.8,4592.7,1.17337]
[1758173400758,0.4975,4593.4,4593.3,0.1967]
[1758173401062,0.6948,4593.4,4593.3,5.00697206]
[1758173401458,0.6948,4593.4,4593.3,0.9052]
[1758173401855,0.6948,4593.4,4593.3,0.6153]
[1758173402459,0.6948,4593.4,4593.3,0.9052]
[1758173402665,1.58877206,4593.4,4593.3,4.113]
[1758173404576,0.6948,4593.4,4593.3,4.113]
[1758173405260,0.6948,4593.4,4593.3,3.892]
[1758173405462,0.6948,4593.4,4593.3,4.113]
[1758173406265,0.6948,4593.4,4593.3,3.892]
[1758173406462,0.6948,4593.4,4593.3,4.113]
[1758173409367,0.6948,4593.4,4593.3,5.00697206]
[1758173409669,0.6948,4593.4,4593.3,4.113]
[1758173414365,0.4975,4593.4,4593.3,4.113]
[1758173417768,0.2882,4593.4,4593.3,4.113]
[1758173420978,0.2997,4593.6,4593.3,4.113]
[1758173421271,1.24922652,4593.7,4593.6,0.6981]
[1758173421472,1.24922652,4593.7,4593.6,0.9181]
[1758173421666,1.75022652,4593.7,4593.6,0.9181]
[1758173426370,0.7045,4593.7,4593.6,0.9181]
[1758173426571,0.5032,4594.4,4594.3,0.4074]
[1758173426777,0.7045,4594.4,4594.3,0.9181]
[1758173429078,0.2997,4594.7,4594.3,1.67312652]
[1758173429279,0.5032,4594.7,4594.6,0.91537]
[1758173429481,0.5032,4594.7,4594.6,1.13537]
[1758173429677,0.5032,4594.7,4594.6,0.9181]
[1758173430479,0.5032,4595.0,4594.9,0.6981]
[1758173430783,0.5032,4595.0,4594.9,0.9181]
[1758173431479,0.5032,4595.0,4594.9,1.13537]
[1758173432278,0.7045,4595.0,4594.9,0.91537]
[1758173432478,0.8234,4595.0,4594.9,0.21727]
[1758173432683,1.86912652,4595.0,4594.9,0.43727]
[1758173433084,0.8234,4595.0,4594.9,0.63897]
[1758173433276,1.86912652,4595.0,4594.9,0.92967]
[1758173433482,1.86912652,4595.0,4594.9,1.13537]
[1758173433874,0.8234,4595.0,4594.9,1.13537]
[1758173434079,0.7045,4595.0,4594.9,1.13537]
[1758173435384,0.5032,4595.0,4594.9,1.13537]
[1758173436382,0.3103,4595.4,4594.9,1.89039652]
[1758173436583,0.5047,4595.4,4595.3,0.7203]
[1758173436782,0.5047,4595.4,4595.3,0.9403]
[1758173436982,0.7023,4595.4,4595.3,0.9403]
[1758173438287,0.3103,4595.4,4595.3,0.9403]
[1758173438489,0.1944,4595.5,4595.4,0.2127]
[1758173438688,0.5047,4595.5,4595.4,0.4074]
[1758173438889,0.5047,4595.5,4595.4,0.62467]
[1758173439094,0.5047,4595.5,4595.4,0.93757]
[1758173439695,3.9101,4596.3,4595.9,0.3129]
[1758173439892,0.8282,4596.0,4595.9,0.5256]
[1758173440392,0.8282,4596.0,4595.9,0.7203]
[1758173440792,0.7023,4596.0,4595.9,0.7203]
[1758173442496,0.8282,4596.0,4595.9,0.2127]
[1758173442789,0.8282,4596.0,4595.9,0.5256]
[1758173444190,0.8282,4596.0,4595.9,0.7203]
[1758173449298,0.8282,4596.0,4595.7,0.0217]
[1758173449496,4.95582652,4595.8,4595.7,0.0217]
[1758173450399,10.21914304,4595.8,4595.7,0.0217]
[1758173450600,0.7023,4595.1,4595.0,0.1]
[1758173450801,1.74802652,4595.1,4595.0,0.31727]
[1758173452595,1.74802652,4595.1,4595.0,0.1]
[1758173453002,1.74802652,4595.1,4595.0,0.31727]
[1758173453702,1.74802652,4595.1,4595.0,0.21727]
[1758173453895,1.74802652,4595.1,4594.6,0.5256]
[1758173453896,0.392,4594.7,4594.6,0.5256]
[1758173454101,1.74802652,4594.7,4594.6,0.7456]
[1758173457311,1.74802652,4594.7,4594.6,0.5256]
[1758173457511,1.74802652,4594.7,4594.6,0.7456]
[1758173461806,1.74802652,4594.7,4594.6,0.5256]
[1758173462007,1.74802652,4594.7,4594.6,0.3129]
[1758173462209,0.7179,4594.2,4594.1,0.0217]
[1758173462520,0.7179,4593.0,4592.9,4.95712652]
[1758173462714,0.5115,4593.0,4592.9,5.17712652]
[1758173463106,0.5115,4593.0,4592.9,5.39439652]
[1758173463706,0.2118,4593.0,4592.9,5.39439652]
[1758173463906,0.5115,4593.4,4593.3,0.4138]
[1758173464117,0.5115,4593.4,4593.3,0.9236]
[1758173464617,0.7179,4593.4,4593.3,0.9236]
[1758173471524,0.4907,4594.2,4594.1,0.4061]
[1758173471725,0.7017,4594.2,4594.1,0.703]
[1758173471916,0.1165,4594.0,4593.8,0.22]
[1758173472121,0.7017,4593.9,4593.8,0.22]
[1758173473827,1.5953772,4593.9,4593.8,0.923]
[1758173474022,0.7017,4593.9,4593.8,0.923]
[1758173474229,3.2078,4594.3,4593.8,1.5197772]
[1758173474428,0.4907,4594.2,4594.1,0.703]
[1758173474629,0.4907,4594.2,4594.1,0.92027]
[1758173474830,0.4907,4594.2,4594.1,0.703]
[1758173476224,0.2898,4594.1,4593.8,0.5169]
[1758173476426,1.5953772,4593.9,4593.8,0.93887]
[1758173476828,1.5953772,4593.9,4593.8,0.7216]
[1758173478225,1.3055772,4593.9,4593.2,3.2078]
[1758173478430,1.5953772,4593.3,4593.2,3.7094]
[1758173478630,1.5953772,4593.3,4593.2,4.12807]
[1758173478831,0.7017,4593.3,4593.2,5.0217472]
[1758173479227,0.4907,4593.3,4593.2,5.0217472]
[1758173480835,0.4907,4593.3,4593.2,5.2417472]
[1758173482835,0.4907,4593.3,4593.2,5.0244772]
[1758173483034,0.4907,4593.3,4593.2,5.2417472]
[1758173483936,0.8936772,4593.7,4593.2,5.0244772]
[1758173484232,1.3055772,4593.7,4593.6,0.703]
[1758173484538,1.3055772,4593.7,4593.6,0.923]
[1758173485937,1.5953772,4593.7,4593.6,0.923]
[1758173489037,0.7017,4593.7,4593.6,0.923]
[1758173489237,1.5953772,4593.7,4593.6,0.923]
[1758173492238,1.5953772,4593.7,4593.6,0.703]
[1758173503154,0.7017,4593.7,4593.6,0.703]
[1758173503444,3.6177,4594.3,4594.2,0.2016]
[1758173503650,5.0554828,4594.3,4594.2,0.5018]
[1758173503845,5.27314281,4594.3,4594.2,0.5018]
[1758173504055,5.57954281,4594.3,4594.2,0.5018]
[1758173504353,5.03543721,4594.3,4594.2,0.5018]
[1758173504746,3.6177,4594.3,4594.2,0.6983]
[1758173504946,0.4099,4594.3,4594.2,0.6983]
[1758173505350,0.4099,4594.3,4594.2,0.9183]
[1758173511153,0.7163,4594.3,4594.2,0.9183]
[1758173512546,0.4099,4594.3,4594.2,0.9183]
[1758173512952,0.1989,4594.3,4594.2,0.9183]
[1758173515952,1.0925772,4594.3,4594.2,0.9183]
[1758173516458,0.1989,4594.3,4594.2,0.9183]
[1758173517758,0.3064,4594.5,4594.2,0.9183]
[1758173517955,0.7163,4594.4,4594.3,0.6983]
[1758173518256,1.6099772,4594.4,4594.3,0.6983]
[1758173521556,0.7163,4594.4,4594.3,0.6983]
[1758173526664,0.4099,4594.4,4594.3,0.6983]
[1758173526864,0.1989,4594.4,4594.3,0.6983]
[1758173527161,1.3906772,4594.7,4594.6,0.7129]
[1758173527463,1.5950772,4594.7,4594.6,0.7129]
[1758173531564,0.7014,4594.7,4594.6,0.7129]
[1758173531763,1.5950772,4594.7,4594.6,0.7129]
[1758173533753,0.7014,4594.7,4594.6,0.7129]
[1758173543172,0.124,4594.5,4594.3,0.0217]
[1758173543394,0.7014,4594.4,4594.3,0.0217]
[1758173543686,2.28957673,4594.4,4594.3,0.0217]
[1758173544384,2.50723674,4594.4,4594.3,0.0217]
[1758173544788,2.28957673,4594.4,4594.3,0.0217]
[1758173545488,3.55249236,4594.4,4593.3,3.4278]
[1758173545693,0.7014,4593.4,4593.3,3.7313]
[1758173546079,0.7014,4593.4,4593.3,3.9317]
[1758173547084,0.7014,4593.4,4593.3,4.1407]
[1758173548787,0.7014,4593.4,4593.3,3.9207]
[1758173548991,0.7014,4593.4,4593.3,4.1407]
[1758173549682,1.74665562,4593.4,4593.1,0.3035]
[1758173549884,0.1165,4593.5,4592.8,34.5558]
[1758173549885,0.497,4592.9,4592.8,34.8593]
[1758173550087,1.54225562,4592.9,4592.8,31.8715]
[1758173550894,1.74665562,4592.9,4592.8,0.5039]
[1758173551196,1.44685562,4592.9,4592.8,0.7129]
[1758173551589,1.74665562,4592.9,4592.8,0.7129]
[1758173552794,1.74665562,4592.9,4592.8,0.5039]
[1758173552995,0.4016,4592.9,4592.8,0.7129]
[1758173553197,0.1972,4592.9,4592.8,0.7129]
[1758173556300,0.7094,4592.9,4592.8,0.7129]
[1758173558506,0.4016,4592.9,4592.8,0.7129]
[1758173559214,0.1972,4592.9,4592.8,0.7129]
[1758173559395,1.35305562,4593.1,4592.8,0.7129]
[1758173559703,1.25205562,4593.1,4593.0,0.7958]
[1758173560294,1.76855562,4593.1,4593.0,0.2897]
[1758173560700,1.76855562,4593.1,4593.0,0.4832]
[1758173563609,1.76855562,4593.1,4593.0,0.6748]
[1758173566210,1.46075562,4593.1,4592.7,0.22]
[1758173566406,0.4155,4592.9,4592.8,0.2897]
[1758173566612,0.7233,4592.9,4592.8,0.4832]
[1758173566813,0.7233,4592.9,4592.8,0.6748]
[1758173567911,0.2068,4592.9,4592.8,0.6748]
[1758173568223,0.5146,4592.9,4592.8,0.6748]
[1758173568411,0.7233,4592.9,4592.8,0.6748]
[1758173574918,0.7233,4592.9,4592.6,0.2897]
[1758173575314,0.4155,4592.9,4592.8,0.1935]
[1758173575514,0.4155,4592.9,4592.8,0.4832]
[1758173575813,0.7233,4592.9,4592.8,0.4832]
[1758173576422,1.76855562,4592.9,4592.8,0.4832]
[1758173579626,1.76855562,4592.9,4592.8,0.6783]
[1758173584635,1.76855562,4592.9,4592.6,0.3162]
[1758173584831,0.6987,4592.5,4592.4,0.7412]
[1758173585338,0.6987,4592.5,4592.4,0.9363]
[1758173585835,0.6987,4592.5,4592.4,0.7163]
[1758173586030,0.6987,4592.5,4592.4,0.9363]
[1758173586230,0.6987,4592.5,4592.4,0.5212]
[1758173586431,0.815,4592.5,4592.2,0.0117]
[1758173586626,0.7176,4592.3,4592.2,0.0117]
[1758173587026,0.7176,4592.3,4592.0,0.2957]
[1758173587334,1.76285562,4592.1,4592.0,0.2957]
[1758173587827,0.3099,4592.0,4591.9,0.5157]
[1758173588033,0.7176,4592.0,4591.9,0.7244]
[1758173588234,0.7176,4592.0,4591.9,0.7057]
[1758173591036,1.76285562,4592.0,4591.9,0.7057]
[1758173592935,1.76285562,4592.0,4591.9,0.5044]
[1758173594533,1.87915562,4592.0,4591.6,0.22]
[1758173594831,1.76285562,4591.7,4591.6,0.7244]
[1758173595737,1.61216588,4591.7,4591.6,0.7244]
[1758173596639,1.61216588,4591.7,4591.6,0.9257]
[1758173598636,1.61216588,4591.7,4591.6,0.7057]
[1758173598836,1.61216588,4591.7,4591.6,0.9257]
[1758173599635,1.61216588,4591.7,4591.6,0.22]
[1758173600035,1.61216588,4591.7,4591.6,0.5157]
[1758173600240,1.61216588,4591.7,4591.6,0.7244]
[1758173600432,1.61216588,4591.7,4591.6,0.5044]
[1758173600636,1.61216588,4591.7,4591.6,0.7244]
[1758173601041,0.1163,4591.5,4591.4,0.0121]
[1758173601251,0.7176,4590.9,4590.8,3.2078]
[1758173601439,0.3099,4590.8,4590.4,0.2957]
[1758173601636,1.61216588,4590.6,4590.5,0.8244]
[1758173601838,1.61216588,4590.6,4590.5,1.0444]
[1758173602136,1.61216588,4590.6,4590.3,3.2078]
[1758173602340,0.3099,4590.5,4590.4,0.2957]
[1758173602640,0.7176,4590.5,4590.4,0.2957]
[1758173603038,0.8339,4590.5,4590.2,0.2957]
[1758173603242,0.8339,4590.5,4590.1,0.22]
[1758173603541,1.61216588,4590.2,4590.1,0.7244]
[1758173603940,1.61216588,4590.2,4590.1,0.5044]
[1758173604536,2.19683176,4590.2,4589.8,3.2078]
[1758173604843,1.61216588,4590.0,4589.9,0.2957]
[1758173605238,0.3099,4589.9,4589.8,3.2078]
[1758173605440,0.7176,4589.9,4589.8,3.2078]
[1758173605942,0.7176,4589.9,4589.8,3.5035]
[1758173606239,0.7176,4589.9,4589.8,3.7122]
[1758173607235,1.61216588,4589.9,4589.8,3.9135]
[1758173610140,1.61216588,4589.9,4589.8,0.7057]
[1758173610347,1.61216588,4589.9,4589.8,0.9257]
[1758173610844,0.7176,4589.9,4589.8,0.9257]
[1758173611041,0.7176,4589.9,4589.8,0.7057]
[1758173611240,0.7176,4589.9,4589.8,0.9257]
[1758173612950,0.7176,4589.9,4589.8,0.5044]
[1758173615752,0.7176,4589.9,4589.8,0.7057]
[1758173615753,1.61216588,4589.9,4589.8,0.7057]
[1758173616855,1.09226588,4589.9,4589.8,0.7057]
[1758173617046,1.60906588,4589.9,4589.8,0.2957]
[1758173617247,0.7145,4589.9,4589.8,0.6977]
[1758173624161,0.7145,4589.9,4589.6,0.3066]
[1758173624455,1.62276588,4589.7,4589.6,0.7086]
[1758173624660,1.10596588,4589.7,4589.6,0.7086]
[1758173626557,1.41906588,4589.7,4589.6,0.7086]
[1758173628160,0.5245,4589.7,4589.6,0.7086]
[1758173628360,1.41906588,4589.7,4589.6,0.7086]
[1758173629359,1.62276588,4589.7,4589.6,0.9286]
[1758173630463,0.7282,4589.7,4589.6,0.9286]
[1758173630668,1.62276588,4589.7,4589.6,0.9286]
[1758173631672,1.62276588,4589.7,4589.6,0.7086]
[1758173631866,1.62276588,4589.7,4589.6,0.9286]
[1758173637770,1.30966588,4589.7,4589.6,0.9286]
[1758173638468,1.30966588,4589.7,4589.6,0.7086]